[Event "Early-Titled-Tuesday-Blitz-March-05-2024"]
[Site "Chess.com"]
[Date "2024.03.05"]
[Round "6"]
[White "Rud_2008"]
[Black "Manukyan_Artak"]
[Result "1-0"]
[WhiteElo "2726"]
[BlackElo "2526"]
[TimeControl "180+1"]
[EndTime "9:09:07 PST"]
[Termination "Rud_2008 won by resignation"]

1. e4 {[%clk 0:02:58.8]} 1... c6 {[%clk 0:02:59.9]} 2. Nf3 {[%clk 0:02:58.5]}
2... d5 {[%clk 0:03:00.8]} 3. d3 {[%clk 0:02:59]} 3... dxe4 {[%clk 0:03:00.7]}
4. dxe4 {[%clk 0:02:59.9]} 4... Qxd1+ {[%clk 0:03:01]} 5. Kxd1 {[%clk 0:03:00]}
5... Bg4 {[%clk 0:02:59.7]} 6. Be2 {[%clk 0:02:59.9]} 6... Nd7 {[%clk
0:03:00.1]} 7. Ne1 {[%clk 0:03:00.3]} 7... Bxe2+ {[%clk 0:02:58.6]} 8. Kxe2
{[%clk 0:03:01.2]} 8... e5 {[%clk 0:02:58.8]} 9. Nd3 {[%clk 0:03:01.7]} 9... f6
{[%clk 0:02:58.8]} 10. Be3 {[%clk 0:03:02.1]} 10... b6 {[%clk 0:02:58.5]} 11.
Nd2 {[%clk 0:03:00.6]} 11... O-O-O {[%clk 0:02:57.7]} 12. f3 {[%clk 0:03:00]}
12... h5 {[%clk 0:02:55.1]} 13. a4 {[%clk 0:02:58.8]} 13... Kb7 {[%clk 0:02:53]}
14. b4 {[%clk 0:02:58.1]} 14... g5 {[%clk 0:02:49.7]} 15. h3 {[%clk 0:02:57.6]}
15... Nh6 {[%clk 0:02:49.3]} 16. c4 {[%clk 0:02:48.6]} 16... Nf7 {[%clk
0:02:46]} 17. Ra2 {[%clk 0:02:41.5]} 17... Be7 {[%clk 0:02:31.3]} 18. Rha1
{[%clk 0:02:35.6]} 18... Ra8 {[%clk 0:02:26.8]} 19. c5 {[%clk 0:02:33.1]} 19...
bxc5 {[%clk 0:02:21.6]} 20. bxc5 {[%clk 0:02:31.2]} 20... Kc7 {[%clk 0:02:18]}
21. Nc4 {[%clk 0:02:29.3]} 21... Rhb8 {[%clk 0:02:09.7]} 22. Rd1 {[%clk
0:02:29.8]} 22... Rb3 {[%clk 0:02:03.5]} 23. Na5 {[%clk 0:02:18.4]} 23... Rbb8
{[%clk 0:02:03.2]} 24. Rad2 {[%clk 0:02:16]} 24... Nf8 {[%clk 0:01:51.3]} 25.
Kf1 {[%clk 0:01:50.5]} 25... h4 {[%clk 0:01:44.7]} 26. Bf2 {[%clk 0:01:30.4]}
26... Ne6 {[%clk 0:01:31.1]} 27. Nb4 {[%clk 0:01:24.7]} 27... Rd8 {[%clk
0:01:26.9]} 28. Na6+ {[%clk 0:01:05.1]} 28... Kc8 {[%clk 0:01:24.8]} 29. Nxc6
{[%clk 0:01:03.2]} 29... Rxd2 {[%clk 0:01:20.3]} 30. Nxe7+ {[%clk 0:01:02.8]}
30... Kb7 {[%clk 0:01:17.6]} 31. Rxd2 {[%clk 0:01:02.6]} 31... Kxa6 {[%clk
0:01:16.5]} 32. c6 {[%clk 0:01:02.3]} 32... Rd8 {[%clk 0:01:08.2]} 33. Rd5
{[%clk 0:00:52.6]} 33... Nc7 {[%clk 0:01:03.8]} 34. Rxd8 {[%clk 0:00:30.7]}
34... Nxd8 {[%clk 0:01:04.7]} 35. Nd5 {[%clk 0:00:31.4]} 35... Nde6 {[%clk
0:00:57.9]} 36. Nxf6 {[%clk 0:00:27.9]} 36... Ka5 {[%clk 0:00:58.2]} 37. Nd7
{[%clk 0:00:27.4]} 37... Kxa4 {[%clk 0:00:57.2]} 38. Bxa7 {[%clk 0:00:28]} 38...
Kb5 {[%clk 0:00:52.2]} 39. Nxe5 {[%clk 0:00:28.6]} 39... Ne8 {[%clk 0:00:48.9]}
40. Be3 {[%clk 0:00:28.2]} 40... Nd6 {[%clk 0:00:45.7]} 41. Ke2 {[%clk
0:00:24.1]} 41... Ka6 {[%clk 0:00:35.5]} 42. Kd3 {[%clk 0:00:20.5]} 42... Kb5
{[%clk 0:00:35.7]} 43. Kc3 {[%clk 0:00:20.1]} 43... Ka6 {[%clk 0:00:35.5]} 44.
Kb4 {[%clk 0:00:18.5]} 44... g4 {[%clk 0:00:31.3]} 45. Nd7 {[%clk 0:00:18.6]}
1-0

[Event "Early-Titled-Tuesday-Blitz-March-05-2024"]
[Site "Chess.com"]
[Date "2024.03.05"]
[Round "6"]
[White "Casper"]
[Black "baki83"]
[Result "0-1"]
[WhiteElo "2524"]
[BlackElo "2796"]
[TimeControl "180+1"]
[EndTime "9:09:07 PST"]
[Termination "baki83 won on time"]

1. e4 {[%clk 0:02:56.7]} 1... c5 {[%clk 0:02:59.9]} 2. d4 {[%clk 0:02:57]} 2...
cxd4 {[%clk 0:02:59.9]} 3. Qxd4 {[%clk 0:02:57.6]} 3... Nc6 {[%clk 0:02:59.7]}
4. Qe3 {[%clk 0:02:58.3]} 4... Nf6 {[%clk 0:02:59.7]} 5. Nc3 {[%clk 0:02:58.8]}
5... g6 {[%clk 0:03:00.1]} 6. Bd2 {[%clk 0:02:59.4]} 6... Bg7 {[%clk 0:03:00.7]}
7. O-O-O {[%clk 0:03:00.1]} 7... O-O {[%clk 0:03:01.3]} 8. Nd5 {[%clk
0:02:59.7]} 8... d6 {[%clk 0:02:58.6]} 9. Bc3 {[%clk 0:02:59.7]} 9... Be6 {[%clk
0:02:54.2]} 10. Nxf6+ {[%clk 0:02:57]} 10... exf6 {[%clk 0:02:53.8]} 11. a3
{[%clk 0:02:56]} 11... Rc8 {[%clk 0:02:52.9]} 12. Ne2 {[%clk 0:02:56.1]} 12...
Re8 {[%clk 0:02:52.7]} 13. Nf4 {[%clk 0:02:55.3]} 13... Bh6 {[%clk 0:02:48.2]}
14. Kb1 {[%clk 0:02:54]} 14... Qe7 {[%clk 0:02:40.3]} 15. Qg3 {[%clk 0:02:50.2]}
15... Ne5 {[%clk 0:02:38.8]} 16. f3 {[%clk 0:02:35.3]} 16... Rxc3 {[%clk
0:02:33.7]} 17. bxc3 {[%clk 0:02:36.2]} 17... Rc8 {[%clk 0:02:33.1]} 18. Nd5
{[%clk 0:02:27.6]} 18... Bxd5 {[%clk 0:02:32.2]} 19. Rxd5 {[%clk 0:02:28.5]}
19... Rxc3 {[%clk 0:02:28.8]} 20. Qf2 {[%clk 0:02:24.1]} 20... Be3 {[%clk
0:02:17.8]} 21. Qe1 {[%clk 0:02:23.4]} 21... Qc7 {[%clk 0:02:17.1]} 22. Bb5
{[%clk 0:02:07.8]} 22... Rxa3 {[%clk 0:02:02.5]} 23. Qb4 {[%clk 0:01:59.9]}
23... Bc5 {[%clk 0:01:47.3]} 24. Qb2 {[%clk 0:01:47.4]} 24... a6 {[%clk
0:01:42.1]} 25. Be2 {[%clk 0:01:41.5]} 25... Re3 {[%clk 0:01:22.4]} 26. Bd3
{[%clk 0:01:41.2]} 26... b5 {[%clk 0:01:17.8]} 27. h4 {[%clk 0:01:30.1]} 27...
h5 {[%clk 0:01:16.9]} 28. Rd1 {[%clk 0:01:23.2]} 28... Kg7 {[%clk 0:01:12.7]}
29. Qa2 {[%clk 0:01:13.8]} 29... Qb6 {[%clk 0:01:10.3]} 30. g4 {[%clk
0:00:54.8]} 30... hxg4 {[%clk 0:00:54.9]} 31. fxg4 {[%clk 0:00:55.7]} 31... Nxg4
{[%clk 0:00:53.6]} 32. h5 {[%clk 0:00:56.6]} 32... Ne5 {[%clk 0:00:51.4]} 33.
Rf1 {[%clk 0:00:35.6]} 33... Rg3 {[%clk 0:00:47.6]} 34. Qb2 {[%clk 0:00:28.7]}
34... Qa5 {[%clk 0:00:40.4]} 35. Qc1 {[%clk 0:00:22.6]} 35... Qb4+ {[%clk
0:00:39.9]} 36. Ka2 {[%clk 0:00:23]} 36... Qa4+ {[%clk 0:00:39.3]} 37. Kb1
{[%clk 0:00:21.6]} 37... Bd4 {[%clk 0:00:22.2]} 38. Rxd4 {[%clk 0:00:05.6]}
38... Qxd4 {[%clk 0:00:23.1]} 39. Qf4 {[%clk 0:00:03.4]} 39... Nxd3 {[%clk
0:00:18.3]} 40. cxd3 {[%clk 0:00:01.6]} 40... Qxd3+ {[%clk 0:00:18.1]} 0-1

[Event "Early-Titled-Tuesday-Blitz-March-05-2024"]
[Site "Chess.com"]
[Date "2024.03.05"]
[Round "6"]
[White "littlepinkyboy"]
[Black "Masterbeaterr"]
[Result "1-0"]
[WhiteElo "2662"]
[BlackElo "2437"]
[TimeControl "180+1"]
[EndTime "9:09:09 PST"]
[Termination "littlepinkyboy won by resignation"]

1. e4 {[%clk 0:03:00.9]} 1... e5 {[%clk 0:02:59.9]} 2. Nf3 {[%clk 0:02:53.3]}
2... Nc6 {[%clk 0:03:00]} 3. Bb5 {[%clk 0:02:53.1]} 3... a6 {[%clk 0:02:59.8]}
4. Ba4 {[%clk 0:02:53.8]} 4... Nf6 {[%clk 0:02:59]} 5. O-O {[%clk 0:02:54.4]}
5... Nxe4 {[%clk 0:02:58.7]} 6. d4 {[%clk 0:02:51.9]} 6... b5 {[%clk 0:02:58.6]}
7. Bb3 {[%clk 0:02:52.4]} 7... d5 {[%clk 0:02:59.5]} 8. dxe5 {[%clk 0:02:52.9]}
8... Be6 {[%clk 0:02:59.8]} 9. Nbd2 {[%clk 0:02:53.3]} 9... Bc5 {[%clk
0:02:59.5]} 10. Qe2 {[%clk 0:02:52.4]} 10... Nxd2 {[%clk 0:02:58.6]} 11. Bxd2
{[%clk 0:02:53.3]} 11... O-O {[%clk 0:02:57.3]} 12. h3 {[%clk 0:02:50.3]} 12...
d4 {[%clk 0:02:46.6]} 13. Bxe6 {[%clk 0:02:45.6]} 13... fxe6 {[%clk 0:02:46.1]}
14. Ng5 {[%clk 0:02:45.2]} 14... Qd5 {[%clk 0:02:44.4]} 15. Rae1 {[%clk
0:02:25.5]} 15... h6 {[%clk 0:02:29.7]} 16. Ne4 {[%clk 0:02:25]} 16... Bb6
{[%clk 0:02:22.3]} 17. Qg4 {[%clk 0:02:20.5]} 17... Nxe5 {[%clk 0:02:15.8]} 18.
Qg3 {[%clk 0:02:11.1]} 18... Nc4 {[%clk 0:02:12.5]} 19. Bxh6 {[%clk 0:02:07.2]}
19... Qe5 {[%clk 0:01:59.4]} 20. Nf6+ {[%clk 0:01:27.6]} 20... Qxf6 {[%clk
0:01:58.5]} 21. Rxe6 {[%clk 0:01:27.6]} 21... Qf7 {[%clk 0:01:52.8]} 22. Rg6
{[%clk 0:01:27.3]} 22... Qxg6 {[%clk 0:01:35.8]} 23. Qxg6 {[%clk 0:01:28.2]}
23... Rf7 {[%clk 0:01:36.7]} 24. Bc1 {[%clk 0:01:22.7]} 24... Raf8 {[%clk
0:01:34.4]} 25. b3 {[%clk 0:01:22.4]} 25... Ne3 {[%clk 0:01:33.1]} 26. Ba3
{[%clk 0:00:58.3]} 26... c5 {[%clk 0:01:28.9]} 27. Qxb6 {[%clk 0:00:33.3]} 27...
b4 {[%clk 0:01:24.7]} 28. Bxb4 {[%clk 0:00:02.6]} 28... cxb4 {[%clk 0:01:25.6]}
29. Qxd4 {[%clk 0:00:02.3]} 29... Nxf1 {[%clk 0:01:24.9]} 30. Kxf1 {[%clk
0:00:03.2]} 30... a5 {[%clk 0:01:25]} 31. f3 {[%clk 0:00:02.6]} 31... Rf5 {[%clk
0:01:20.6]} 32. Qc4+ {[%clk 0:00:02.7]} 32... Kh8 {[%clk 0:01:19.3]} 33. Kg1
{[%clk 0:00:03.4]} 33... Rf4 {[%clk 0:01:16.2]} 34. Qc5 {[%clk 0:00:03.2]} 34...
R8f5 {[%clk 0:01:14.7]} 35. Qc8+ {[%clk 0:00:03.4]} 35... Rf8 {[%clk 0:01:14.8]}
36. Qc7 {[%clk 0:00:03.2]} 36... R4f5 {[%clk 0:01:13.1]} 37. Kh2 {[%clk
0:00:03.6]} 37... Re8 {[%clk 0:01:12.1]} 38. c4 {[%clk 0:00:03.4]} 38... bxc3
{[%clk 0:01:07.9]} 39. Qxc3 {[%clk 0:00:03.6]} 39... Rfe5 {[%clk 0:01:04.3]} 40.
Qd2 {[%clk 0:00:02.1]} 40... Re2 {[%clk 0:01:04]} 41. Qc3 {[%clk 0:00:02.6]}
41... Rxa2 {[%clk 0:01:02.7]} 42. Qc5 {[%clk 0:00:02.9]} 42... Ree2 {[%clk
0:01:01.5]} 43. Qh5+ {[%clk 0:00:02.7]} 43... Kg8 {[%clk 0:01:01.3]} 44. Qd5+
{[%clk 0:00:03.3]} 44... Kh8 {[%clk 0:01:00.9]} 45. Qh5+ {[%clk 0:00:03.4]}
45... Kg8 {[%clk 0:01:00.9]} 46. Qd5+ {[%clk 0:00:03.6]} 46... Kh8 {[%clk
0:01:01.2]} 47. Qd8+ {[%clk 0:00:04.1]} 47... Kh7 {[%clk 0:01:01.5]} 48. Qh4+
{[%clk 0:00:04.8]} 48... Kg8 {[%clk 0:01:01.4]} 49. Qg4 {[%clk 0:00:04.8]} 49...
Rab2 {[%clk 0:00:58.2]} 50. h4 {[%clk 0:00:04.9]} 50... Rxb3 {[%clk 0:00:53.3]}
51. Qc4+ {[%clk 0:00:04.7]} 1-0

[Event "Early-Titled-Tuesday-Blitz-March-05-2024"]
[Site "Chess.com"]
[Date "2024.03.05"]
[Round "6"]
[White "Veganator13"]
[Black "ReinisUz"]
[Result "1-0"]
[WhiteElo "2328"]
[BlackElo "2405"]
[TimeControl "180+1"]
[EndTime "9:09:09 PST"]
[Termination "Veganator13 won by resignation"]

1. c4 {[%clk 0:02:59.5]} 1... c5 {[%clk 0:02:59]} 2. g3 {[%clk 0:02:59.1]} 2...
Nc6 {[%clk 0:02:59.4]} 3. Bg2 {[%clk 0:02:59.1]} 3... g6 {[%clk 0:03:00]} 4. Nc3
{[%clk 0:02:58.4]} 4... Bg7 {[%clk 0:03:00.5]} 5. d3 {[%clk 0:02:59.1]} 5... e5
{[%clk 0:03:00]} 6. Nf3 {[%clk 0:02:55.5]} 6... Nge7 {[%clk 0:03:00.5]} 7. Nd2
{[%clk 0:02:56.2]} 7... O-O {[%clk 0:03:00.8]} 8. Nf1 {[%clk 0:02:57.1]} 8... d6
{[%clk 0:02:56.7]} 9. Ne3 {[%clk 0:02:57.4]} 9... f5 {[%clk 0:02:56.6]} 10. Ned5
{[%clk 0:02:57.1]} 10... h6 {[%clk 0:02:56.3]} 11. Rb1 {[%clk 0:02:56.8]} 11...
Kh7 {[%clk 0:02:54.9]} 12. a3 {[%clk 0:02:56.5]} 12... a5 {[%clk 0:02:55.2]} 13.
Bd2 {[%clk 0:02:54.7]} 13... Be6 {[%clk 0:02:52.1]} 14. b4 {[%clk 0:02:52.8]}
14... axb4 {[%clk 0:02:46.2]} 15. axb4 {[%clk 0:02:52.2]} 15... Bxd5 {[%clk
0:02:45.4]} 16. Nxd5 {[%clk 0:02:51.4]} 16... Nxd5 {[%clk 0:02:45.3]} 17. Bxd5
{[%clk 0:02:50.2]} 17... cxb4 {[%clk 0:02:06.7]} 18. Bxb4 {[%clk 0:02:38.2]}
18... Ra2 {[%clk 0:02:04.8]} 19. O-O {[%clk 0:02:36.9]} 19... f4 {[%clk
0:01:48.8]} 20. Bc3 {[%clk 0:02:31]} 20... Qd7 {[%clk 0:01:22.9]} 21. Bf3 {[%clk
0:02:16.6]} 21... Ra3 {[%clk 0:01:14.5]} 22. Bb2 {[%clk 0:02:11.2]} 22... Ra2
{[%clk 0:01:11.3]} 23. Qb3 {[%clk 0:02:09.8]} 23... Rxb2 {[%clk 0:01:10.2]} 24.
Qxb2 {[%clk 0:01:53]} 24... e4 {[%clk 0:01:04.2]} 25. Qxb7 {[%clk 0:01:52.2]}
25... Qxb7 {[%clk 0:01:04]} 26. Rxb7 {[%clk 0:01:51.5]} 26... exf3 {[%clk
0:01:03.7]} 27. exf3 {[%clk 0:01:52.2]} 27... Ne5 {[%clk 0:01:00]} 28. Kg2
{[%clk 0:01:47]} 28... Nxd3 {[%clk 0:00:45.5]} 29. Rd1 {[%clk 0:01:44.9]} 29...
Nc5 {[%clk 0:00:44.9]} 30. Rc7 {[%clk 0:01:43.8]} 30... Kh8 {[%clk 0:00:28.8]}
31. Rd5 {[%clk 0:01:37.1]} 31... Rd8 {[%clk 0:00:15.6]} 32. Rcxc5 {[%clk
0:01:02.6]} 32... Be5 {[%clk 0:00:13.7]} 33. Rc6 {[%clk 0:00:59.1]} 33... Re8
{[%clk 0:00:12.3]} 34. c5 {[%clk 0:00:54.6]} 34... dxc5 {[%clk 0:00:12.2]} 35.
Rcxc5 {[%clk 0:00:52.5]} 35... Bf6 {[%clk 0:00:10.2]} 36. Rc6 {[%clk 0:00:51.9]}
36... Kg7 {[%clk 0:00:09.8]} 37. Rd7+ {[%clk 0:00:51.7]} 37... Be7 {[%clk
0:00:10.1]} 38. h4 {[%clk 0:00:44.6]} 38... fxg3 {[%clk 0:00:08.3]} 39. fxg3
{[%clk 0:00:44.2]} 39... Kf7 {[%clk 0:00:08.5]} 40. h5 {[%clk 0:00:41.8]} 40...
gxh5 {[%clk 0:00:04.6]} 41. Rxh6 {[%clk 0:00:42.3]} 41... h4 {[%clk 0:00:03.9]}
42. Rh7+ {[%clk 0:00:40.7]} 42... Ke6 {[%clk 0:00:03.7]} 43. Rhxe7+ {[%clk
0:00:40.6]} 43... Rxe7 {[%clk 0:00:04]} 44. Rxe7+ {[%clk 0:00:41.5]} 44... Kxe7
{[%clk 0:00:04.9]} 45. gxh4 {[%clk 0:00:42.2]} 45... Kf6 {[%clk 0:00:05.8]} 46.
Kg3 {[%clk 0:00:42.6]} 46... Kf5 {[%clk 0:00:06.5]} 1-0

[Event "Early-Titled-Tuesday-Blitz-March-05-2024"]
[Site "Chess.com"]
[Date "2024.03.05"]
[Round "6"]
[White "xakevicius91"]
[Black "Miguelito"]
[Result "1/2-1/2"]
[WhiteElo "2572"]
[BlackElo "2818"]
[TimeControl "180+1"]
[EndTime "9:09:13 PST"]
[Termination "Game drawn by repetition"]

1. e4 {[%clk 0:03:00.9]} 1... c5 {[%clk 0:03:00.1]} 2. Nf3 {[%clk 0:03:00.3]}
2... e6 {[%clk 0:03:00.3]} 3. b3 {[%clk 0:02:55.8]} 3... b6 {[%clk 0:02:57.3]}
4. d4 {[%clk 0:02:55.2]} 4... cxd4 {[%clk 0:02:57.2]} 5. Nxd4 {[%clk 0:02:56.1]}
5... Bb7 {[%clk 0:02:57.8]} 6. Bd3 {[%clk 0:02:56.5]} 6... a6 {[%clk 0:02:58]}
7. Bb2 {[%clk 0:02:56.2]} 7... d6 {[%clk 0:02:57.6]} 8. Qe2 {[%clk 0:02:56.3]}
8... Nd7 {[%clk 0:02:57.7]} 9. Nd2 {[%clk 0:02:56.4]} 9... Ngf6 {[%clk
0:02:57.8]} 10. O-O-O {[%clk 0:02:56.7]} 10... Nc5 {[%clk 0:02:52.1]} 11. Kb1
{[%clk 0:02:56.6]} 11... Be7 {[%clk 0:02:48.5]} 12. g4 {[%clk 0:02:56.5]} 12...
d5 {[%clk 0:02:07]} 13. e5 {[%clk 0:02:46]} 13... Nfd7 {[%clk 0:01:51.6]} 14. f4
{[%clk 0:02:44.7]} 14... Nxd3 {[%clk 0:01:44.3]} 15. cxd3 {[%clk 0:02:44.7]}
15... Nc5 {[%clk 0:01:43.4]} 16. f5 {[%clk 0:02:41.6]} 16... a5 {[%clk 0:01:40]}
17. N2f3 {[%clk 0:02:33.2]} 17... Ba6 {[%clk 0:01:38.3]} 18. Nc6 {[%clk
0:02:26.2]} 18... Qd7 {[%clk 0:01:35.7]} 19. Nxe7 {[%clk 0:02:26.6]} 19... Qxe7
{[%clk 0:01:35.9]} 20. Ba3 {[%clk 0:02:24.7]} 20... Rc8 {[%clk 0:01:08.8]} 21.
Qe3 {[%clk 0:02:19.7]} 21... Qd7 {[%clk 0:01:03.5]} 22. Nd4 {[%clk 0:02:15.7]}
22... Kd8 {[%clk 0:00:53.5]} 23. Rhf1 {[%clk 0:02:06.5]} 23... Kc7 {[%clk
0:00:49.9]} 24. Bxc5 {[%clk 0:01:17.5]} 24... bxc5 {[%clk 0:00:49.5]} 25. Nf3
{[%clk 0:01:09.8]} 25... d4 {[%clk 0:00:44.9]} 26. Qg5 {[%clk 0:01:02.7]} 26...
a4 {[%clk 0:00:38.3]} 27. Qxg7 {[%clk 0:00:57.2]} 27... axb3 {[%clk 0:00:37.4]}
28. axb3 {[%clk 0:00:57.6]} 28... Rb8 {[%clk 0:00:34.2]} 29. Nd2 {[%clk
0:00:55.3]} 29... Bxd3+ {[%clk 0:00:33.8]} 30. Kb2 {[%clk 0:00:55.8]} 30... c4
{[%clk 0:00:28.9]} 31. fxe6 {[%clk 0:00:50.7]} 31... c3+ {[%clk 0:00:25.2]} 32.
Kc1 {[%clk 0:00:49.1]} 32... Ra8 {[%clk 0:00:11.4]} 33. Nb1 {[%clk 0:00:41]}
33... Bxb1 {[%clk 0:00:11.6]} 34. exd7 {[%clk 0:00:33.4]} 34... Be4 {[%clk
0:00:10.9]} 35. d8=Q+ {[%clk 0:00:30.6]} 35... Rhxd8 {[%clk 0:00:10.5]} 36.
Rxf7+ {[%clk 0:00:29]} 36... Kb8 {[%clk 0:00:10.4]} 37. Rd3 {[%clk 0:00:10.5]}
37... Ra1+ {[%clk 0:00:05.7]} 38. Kc2 {[%clk 0:00:10.9]} 38... Ra2+ {[%clk
0:00:06.2]} 39. Kc1 {[%clk 0:00:11.4]} 39... Ra1+ {[%clk 0:00:06.4]} 40. Kc2
{[%clk 0:00:11.9]} 40... Ra2+ {[%clk 0:00:07]} 41. Kc1 {[%clk 0:00:12.5]} 41...
Ra1+ {[%clk 0:00:02.8]} 1/2-1/2

[Event "Early-Titled-Tuesday-Blitz-March-05-2024"]
[Site "Chess.com"]
[Date "2024.03.05"]
[Round "6"]
[White "David_George21"]
[Black "Shushik"]
[Result "0-1"]
[WhiteElo "2427"]
[BlackElo "2552"]
[TimeControl "180+1"]
[EndTime "9:09:14 PST"]
[Termination "Shushik won by checkmate"]

1. e4 {[%clk 0:03:00.9]} 1... c5 {[%clk 0:03:00.2]} 2. Nf3 {[%clk 0:03:00]} 2...
d6 {[%clk 0:03:00.9]} 3. d4 {[%clk 0:02:59.9]} 3... cxd4 {[%clk 0:03:01.8]} 4.
Nxd4 {[%clk 0:02:59.1]} 4... Nf6 {[%clk 0:03:02.4]} 5. Nc3 {[%clk 0:02:58.9]}
5... a6 {[%clk 0:03:03]} 6. Bg5 {[%clk 0:02:56]} 6... Nbd7 {[%clk 0:03:02.3]} 7.
Bc4 {[%clk 0:02:54.7]} 7... Qb6 {[%clk 0:02:57.6]} 8. Bb3 {[%clk 0:02:54.1]}
8... e6 {[%clk 0:02:56.3]} 9. Bxf6 {[%clk 0:02:53.6]} 9... Nxf6 {[%clk
0:02:55.3]} 10. Qd2 {[%clk 0:02:54.2]} 10... Be7 {[%clk 0:02:52.6]} 11. O-O-O
{[%clk 0:02:52.7]} 11... Bd7 {[%clk 0:02:45]} 12. f4 {[%clk 0:02:52.6]} 12...
O-O-O {[%clk 0:02:36.7]} 13. f5 {[%clk 0:02:50.5]} 13... e5 {[%clk 0:02:28.3]}
14. Nf3 {[%clk 0:02:47.3]} 14... Bc6 {[%clk 0:02:21.6]} 15. Nd5 {[%clk
0:02:34.8]} 15... Bxd5 {[%clk 0:02:14.4]} 16. Bxd5 {[%clk 0:02:35.7]} 16... Nxd5
{[%clk 0:02:04.6]} 17. Qxd5 {[%clk 0:02:36.6]} 17... Rhf8 {[%clk 0:02:00.4]} 18.
Rd3 {[%clk 0:02:33.2]} 18... Kb8 {[%clk 0:01:58.2]} 19. Rb3 {[%clk 0:02:31.1]}
19... Qc7 {[%clk 0:01:56.6]} 20. a4 {[%clk 0:02:27.5]} 20... Rc8 {[%clk
0:01:56]} 21. c3 {[%clk 0:02:23.8]} 21... Qc6 {[%clk 0:01:54.5]} 22. Qxc6 {[%clk
0:02:22.6]} 22... Rxc6 {[%clk 0:01:54.7]} 23. Rd1 {[%clk 0:02:19.8]} 23... Rc4
{[%clk 0:01:53]} 24. Nd2 {[%clk 0:02:16.8]} 24... Rxa4 {[%clk 0:01:50.8]} 25.
Kc2 {[%clk 0:02:09.8]} 25... Rc8 {[%clk 0:01:50]} 26. Kd3 {[%clk 0:02:00.3]}
26... Rc5 {[%clk 0:01:28.3]} 27. c4 {[%clk 0:01:54.6]} 27... b5 {[%clk
0:01:27.5]} 28. Rc1 {[%clk 0:01:28.4]} 28... Ka7 {[%clk 0:01:23.7]} 29. Rc2
{[%clk 0:01:27.5]} 29... Bg5 {[%clk 0:01:18.6]} 30. Rbc3 {[%clk 0:01:06.4]}
30... Bxd2 {[%clk 0:01:14.2]} 31. Kxd2 {[%clk 0:00:56.8]} 31... bxc4 {[%clk
0:01:05.6]} 32. Ke3 {[%clk 0:00:54]} 32... Rb4 {[%clk 0:01:05.3]} 33. Rd2 {[%clk
0:00:50.9]} 33... Rc6 {[%clk 0:01:00.6]} 34. g4 {[%clk 0:00:46.5]} 34... Kb6
{[%clk 0:01:00.8]} 35. h4 {[%clk 0:00:45.9]} 35... a5 {[%clk 0:00:58.3]} 36. g5
{[%clk 0:00:43.2]} 36... a4 {[%clk 0:00:57.5]} 37. h5 {[%clk 0:00:43.1]} 37...
Rb3 {[%clk 0:00:54]} 38. Rc2 {[%clk 0:00:36.4]} 38... Rxc3+ {[%clk 0:00:49]} 39.
Rxc3 {[%clk 0:00:31.7]} 39... Kb5 {[%clk 0:00:48.6]} 40. Kd2 {[%clk 0:00:19.3]}
40... Kc5 {[%clk 0:00:47.7]} 41. Ke3 {[%clk 0:00:17]} 41... Rb6 {[%clk
0:00:47.8]} 42. Rc2 {[%clk 0:00:16.8]} 42... Rb3+ {[%clk 0:00:47]} 43. Kd2
{[%clk 0:00:16.6]} 43... Kd4 {[%clk 0:00:47.2]} 44. g6 {[%clk 0:00:16.3]} 44...
hxg6 {[%clk 0:00:46.4]} 45. f6 {[%clk 0:00:16.4]} 45... gxf6 {[%clk 0:00:46.3]}
46. h6 {[%clk 0:00:17.3]} 46... Rh3 {[%clk 0:00:46]} 47. Rc3 {[%clk 0:00:18.2]}
47... Rxh6 {[%clk 0:00:45.3]} 48. Rg3 {[%clk 0:00:10.5]} 48... Rh2+ {[%clk
0:00:44.9]} 49. Kc1 {[%clk 0:00:10.8]} 49... Kxe4 {[%clk 0:00:44.6]} 50. Kd1
{[%clk 0:00:10.5]} 50... f5 {[%clk 0:00:44.3]} 51. Rc3 {[%clk 0:00:10.8]} 51...
d5 {[%clk 0:00:43.7]} 52. Ra3 {[%clk 0:00:10.5]} 52... Rxb2 {[%clk 0:00:42.4]}
53. Rxa4 {[%clk 0:00:11]} 53... Kd3 {[%clk 0:00:42.7]} 54. Ra3+ {[%clk
0:00:11.3]} 54... c3 {[%clk 0:00:43.2]} 55. Ra4 {[%clk 0:00:07.2]} 55... Rb1#
{[%clk 0:00:42.2]} 0-1

[Event "Early-Titled-Tuesday-Blitz-March-05-2024"]
[Site "Chess.com"]
[Date "2024.03.05"]
[Round "6"]
[White "Rawnsdale"]
[Black "C_K_G"]
[Result "1-0"]
[WhiteElo "2488"]
[BlackElo "2161"]
[TimeControl "180+1"]
[EndTime "9:09:19 PST"]
[Termination "Rawnsdale won on time"]

1. e4 {[%clk 0:03:00.9]} 1... c5 {[%clk 0:03:00.1]} 2. d4 {[%clk 0:03:00.9]}
2... d6 {[%clk 0:03:01]} 3. dxc5 {[%clk 0:03:01]} 3... Qa5+ {[%clk 0:03:01.4]}
4. Nc3 {[%clk 0:03:00]} 4... Qxc5 {[%clk 0:03:02]} 5. Nf3 {[%clk 0:02:59.2]}
5... a6 {[%clk 0:02:59.2]} 6. Be3 {[%clk 0:02:58.1]} 6... Qa5 {[%clk 0:02:59.5]}
7. Bc4 {[%clk 0:02:57.1]} 7... e6 {[%clk 0:02:58.5]} 8. O-O {[%clk 0:02:57.1]}
8... Nf6 {[%clk 0:02:57.1]} 9. Re1 {[%clk 0:02:52.2]} 9... Be7 {[%clk
0:02:56.1]} 10. a3 {[%clk 0:02:45.4]} 10... Nbd7 {[%clk 0:02:51.8]} 11. Bd4
{[%clk 0:02:22.1]} 11... O-O {[%clk 0:02:45.9]} 12. e5 {[%clk 0:02:22.1]} 12...
dxe5 {[%clk 0:02:42.5]} 13. Nxe5 {[%clk 0:02:22.2]} 13... Qc7 {[%clk 0:02:33.3]}
14. Bd3 {[%clk 0:02:17.2]} 14... h6 {[%clk 0:02:24.3]} 15. h3 {[%clk 0:02:08.5]}
15... b5 {[%clk 0:02:23.4]} 16. Qf3 {[%clk 0:01:57.3]} 16... Bb7 {[%clk
0:02:21.6]} 17. Qg3 {[%clk 0:01:57.6]} 17... Bd6 {[%clk 0:02:16.4]} 18. f4
{[%clk 0:01:52.7]} 18... Nh5 {[%clk 0:02:04.8]} 19. Qg4 {[%clk 0:01:47.9]} 19...
Ndf6 {[%clk 0:02:04.9]} 20. Qh4 {[%clk 0:01:44.5]} 20... Rfd8 {[%clk 0:01:55.2]}
21. Ng4 {[%clk 0:01:29.5]} 21... Nxg4 {[%clk 0:01:16.7]} 22. Qxg4 {[%clk
0:01:19.8]} 22... Bxf4 {[%clk 0:01:10.4]} 23. Ne2 {[%clk 0:01:05.9]} 23... Bh2+
{[%clk 0:01:08]} 24. Kh1 {[%clk 0:01:04.4]} 24... Qc6 {[%clk 0:00:58.7]} 25.
Kxh2 {[%clk 0:00:58.2]} 25... f5 {[%clk 0:00:51.3]} 26. Qg6 {[%clk 0:00:43.7]}
26... Rd7 {[%clk 0:00:18]} 27. Rg1 {[%clk 0:00:35.5]} 27... Qd6+ {[%clk
0:00:13.5]} 28. Kh1 {[%clk 0:00:32.4]} 28... Nf4 {[%clk 0:00:08.1]} 29. Nxf4
{[%clk 0:00:27.3]} 29... Qxd4 {[%clk 0:00:08.1]} 30. Qxe6+ {[%clk 0:00:20.1]}
30... Kh7 {[%clk 0:00:07]} 31. Bxf5+ {[%clk 0:00:19.9]} 31... Kh8 {[%clk
0:00:04.8]} 32. Ng6+ {[%clk 0:00:18.4]} 32... Kh7 {[%clk 0:00:05]} 33. Ne5+
{[%clk 0:00:11.7]} 33... Kh8 {[%clk 0:00:04]} 34. Nf7+ {[%clk 0:00:11.4]} 34...
Rxf7 {[%clk 0:00:03.4]} 35. Qxf7 {[%clk 0:00:11]} 35... Bd5 {[%clk 0:00:03.6]}
36. Qg6 {[%clk 0:00:10.8]} 36... Kg8 {[%clk 0:00:04.5]} 37. Rad1 {[%clk
0:00:10.1]} 1-0